bitfinex/quotes_ETHUSD_20250808
["timestamp","ask_amount","ask_price","bid_price","bid_amount"]
[1754668265175,5.0595,3949.0,3948.8,0.1264]
[1754668265395,0.9625,3948.9,3948.8,0.1264]
[1754668265609,1.5125,3948.9,3948.8,0.1264]
[1754668265971,0.9625,3948.9,3948.1,3.0]
[1754668266172,0.55,3948.8,3948.7,2.53243724]
[1754668266394,1.5125,3948.8,3948.6,2.53249466]
[1754668266595,0.55,3948.8,3948.6,2.53249466]
[1754668266808,0.9625,3948.7,3948.6,2.53254317]
[1754668267010,0.9625,3948.7,3948.4,15.52217798]
[1754668267011,4.097,3949.0,3948.5,2.53259379]
[1754668267225,0.9625,3948.9,3948.7,2.53243175]
[1754668267382,0.9625,3948.9,3948.6,2.65892934]
[1754668267709,4.097,3949.0,3948.7,2.53247717]
[1754668267872,4.097,3949.0,3948.4,12.98951004]
[1754668267873,0.9625,3948.9,3948.5,2.65900731]
[1754668268079,0.9625,3948.8,3948.5,0.1264]
[1754668268321,0.9625,3948.8,3948.5,2.53259518]
[1754668268478,0.9625,3948.7,3948.5,2.53259518]
[1754668268678,0.9625,3948.7,3948.6,2.53254317]
[1754668269315,0.9625,3948.7,3948.5,2.53260096]
[1754668269626,0.9625,3948.6,3948.5,2.53260731]
[1754668269777,0.9625,3948.6,3948.4,13.11591004]
[1754668269983,0.6764,3948.9,3948.4,13.11591004]
[1754668270209,0.6764,3948.9,3948.7,2.53243097]
[1754668270547,0.6764,3948.9,3948.5,2.53256431]
[1754668270719,0.9625,3948.8,3948.4,15.64856999]
[1754668270921,0.6764,3948.9,3948.4,13.11591004]
[1754668271124,0.9625,3948.7,3948.6,2.53254317]
[1754668271709,0.6764,3948.9,3948.6,2.53254317]
[1754668272121,0.1264,3948.9,3948.8,2.53241491]
[1754668272321,4.097,3949.0,3948.9,2.53235078]
[1754668272612,0.002,3949.0,3948.9,15.52186082]
[1754668272815,0.002,3949.0,3948.9,21.83892839]
[1754668273009,0.002,3949.0,3948.9,17.87532839]
[1754668273861,0.04,3949.4,3949.3,2.53209429]
[1754668274313,0.04,3949.4,3949.3,7.19789429]
[1754668274510,0.04,3949.4,3949.3,19.73700433]
[1754668275349,0.04,3949.4,3949.3,13.11591004]
[1754668275509,1.0025,3949.4,3948.9,2.53235078]
[1754668275713,0.9625,3949.3,3949.0,0.1264]
[1754668275941,0.04,3949.4,3949.2,2.53211284]
[1754668276261,0.04,3949.4,3949.3,15.52160433]
[1754668276411,0.04,3949.4,3949.3,17.33962557]
[1754668276854,0.04,3949.4,3949.3,21.42762557]
[1754668277014,0.04,3949.4,3949.3,21.87702557]
[1754668277350,0.04,3950.4,3950.1,2.53153139]
[1754668277646,0.002,3950.2,3950.1,2.53153139]
[1754668277849,0.55,3950.1,3949.0,3.0]
[1754668278049,3.08171206,3949.9,3949.0,2.53226773]
[1754668278249,3.08171206,3949.9,3949.0,2.65866773]
[1754668278250,0.55,3949.5,3949.0,2.65866773]
[1754668278553,0.55,3949.5,3949.0,0.1264]
[1754668279044,0.1264,3949.6,3948.8,12.98951004]
[1754668279045,0.55,3949.3,3948.8,12.98951004]
[1754668279346,1.6389,3949.2,3949.1,2.53222253]
[1754668279540,1.6389,3949.2,3948.8,12.98951004]
[1754668279853,0.6764,3949.2,3948.8,15.52190712]
[1754668280014,0.9625,3949.1,3948.8,12.98951004]
[1754668280212,0.6764,3949.2,3948.8,12.98951004]
[1754668280213,0.6764,3949.2,3949.0,2.53228665]
[1754668280429,0.6764,3949.2,3948.8,12.98951004]
[1754668280634,0.4691,3949.1,3948.8,12.98951004]
[1754668280953,0.4691,3949.1,3948.6,0.1264]
[1754668280954,0.55,3948.9,3947.8,12.98951004]
[1754668281264,0.55,3948.5,3948.0,0.1264]
[1754668281438,4.087,3948.4,3948.0,0.1264]
[1754668281614,0.9625,3948.3,3948.0,0.1264]
[1754668281845,0.9625,3948.3,3947.8,12.98951004]
[1754668282022,0.9625,3948.2,3947.9,0.1264]
[1754668282223,4.2134,3948.4,3948.0,2.53292471]
[1754668282432,4.6825,3948.4,3948.0,2.53292471]
[1754668282613,0.4691,3948.3,3948.0,2.53292471]
[1754668283016,0.4691,3948.3,3948.1,2.53285886]
[1754668283327,4.2134,3948.4,3947.9,0.1264]
[1754668283534,4.2134,3948.4,3948.1,2.5328309]
[1754668283738,4.2134,3948.4,3948.0,2.53291938]
[1754668283948,4.6825,3948.4,3948.1,2.53285839]
[1754668284143,4.6825,3948.4,3948.2,2.53277647]
[1754668284144,4.2134,3948.4,3948.2,2.53277647]
[1754668284451,4.087,3948.4,3948.3,15.52224564]
[1754668284616,4.087,3948.4,3948.3,12.98951004]
[1754668284818,5.4193,3948.4,3948.2,0.1264]
[1754668285014,0.9236,3948.3,3947.9,2.65936842]
[1754668285243,0.4294,3948.2,3947.9,2.65936842]
[1754668285580,4.4957,3948.4,3947.9,2.65936842]
[1754668285581,0.4942,3948.3,3948.0,2.53291868]
[1754668285758,0.9236,3948.2,3947.8,12.98951004]
[1754668286080,0.4294,3948.1,3947.9,2.53294867]
[1754668286241,0.4942,3948.2,3947.9,2.53294867]
[1754668286444,0.1264,3948.3,3947.9,2.53297752]
[1754668286645,0.1264,3948.3,3948.0,2.53291834]
[1754668286841,0.1264,3948.3,3947.8,15.52255537]
[1754668286842,0.6206,3948.3,3947.8,12.98951004]
[1754668287078,0.4294,3948.2,3947.9,2.53294692]
[1754668287378,4.087,3948.4,3948.3,2.5327356]
[1754668287577,4.087,3948.4,3948.3,15.52224564]
[1754668287876,4.087,3948.4,3948.3,15.64864564]
[1754668288588,4.037,3948.4,3948.3,13.11591004]
[1754668288766,4.037,3948.4,3948.3,15.64864564]
[1754668289481,4.037,3948.4,3948.3,13.11591004]
[1754668289685,5.3643,3948.4,3948.3,0.1264]
[1754668290080,4.9907,3948.4,3948.3,0.1264]
[1754668290278,4.9907,3948.4,3948.0,2.53286415]
[1754668290279,5.1171,3948.4,3948.0,2.53286415]
[1754668290491,5.1428,3948.4,3947.9,2.532971]
[1754668290698,7.24607778,3948.4,3947.8,2.65943627]
[1754668290897,0.9236,3948.3,3947.8,2.65943627]
[1754668291067,0.9236,3948.2,3947.9,2.53295778]
[1754668291263,4.7134,3948.4,3947.8,2.65943707]
[1754668291492,0.9236,3948.3,3947.8,2.53303707]
[1754668291718,0.55,3948.1,3947.6,0.001]
[1754668291878,0.55,3947.7,3947.6,0.001]
[1754668292062,1.26670711,3947.7,3947.6,0.001]
[1754668292389,2.19030711,3947.7,3947.6,0.001]
[1754668292979,1.26670711,3947.7,3947.6,0.001]
[1754668293178,0.55,3947.7,3947.6,0.001]
[1754668293679,1.4736,3947.7,3947.6,0.001]
[1754668294266,4.00672055,3947.7,3947.6,0.001]
[1754668294468,3.08344142,3947.2,3947.1,0.04]
[1754668294670,7.72812151,3947.2,3947.1,0.04]
[1754668294893,8.65172151,3947.2,3947.1,0.04]
[1754668295422,5.5566,3947.2,3947.1,0.04]
[1754668295569,4.083,3947.2,3947.1,2.57350561]
[1754668295968,4.082,3947.6,3947.1,0.4696]
[1754668296170,4.082,3947.6,3947.3,12.98951004]
[1754668296617,4.082,3947.6,3947.1,0.04]
[1754668296785,3.08344142,3947.2,3947.1,0.04]
[1754668296990,7.16644142,3947.2,3947.1,0.04]
[1754668297205,8.09004142,3947.2,3947.1,0.04]
[1754668298980,5.0624,3947.2,3947.1,0.04]
[1754668299209,8.09004142,3947.2,3947.1,0.04]
[1754668299411,9.10577867,3947.2,3947.1,0.04]
[1754668299717,6.57233725,3947.2,3947.1,0.04]
[1754668300014,4.633,3947.2,3947.1,2.57350561]
[1754668300257,4.083,3947.2,3947.1,2.57350561]
[1754668300882,4.083,3947.2,3947.1,0.04]
[1754668301222,4.083,3947.2,3947.1,2.57350561]
[1754668301720,0.4294,3947.8,3947.2,5.06688284]
[1754668302020,4.081,3947.7,3947.2,1.80963929]
[1754668302324,4.081,3947.6,3947.2,0.4932]
[1754668302478,0.1264,3947.9,3947.7,2.53311953]
[1754668302685,4.081,3947.8,3947.4,0.1264]
[1754668302915,0.9236,3947.7,3947.4,2.53324983]
[1754668303483,4.081,3947.8,3947.5,2.53323727]
[1754668303685,4.081,3947.8,3947.6,2.53317483]
[1754668303885,4.631,3947.8,3947.7,2.53312055]
[1754668304103,4.631,3947.8,3947.6,2.53316698]
[1754668304438,4.631,3947.8,3947.5,2.53323555]
[1754668304728,4.631,3947.8,3947.7,2.53312055]
[1754668305098,4.631,3947.8,3947.6,2.53316996]
[1754668305296,4.631,3947.8,3947.4,2.53325255]
[1754668305619,4.631,3947.8,3947.6,2.53318398]
[1754668305826,4.631,3947.8,3947.5,2.53323055]
[1754668306010,0.55,3947.7,3947.3,0.1264]
[1754668306213,1.05,3947.6,3947.1,0.04]
[1754668306538,4.08,3947.5,3947.1,0.04]
[1754668306706,4.08,3947.5,3947.3,2.53332968]
[1754668306907,4.08,3947.5,3947.4,2.53331306]
[1754668307434,4.08,3947.5,3947.3,2.53336551]
[1754668307614,4.08,3947.5,3947.4,2.53331306]
[1754668308001,3.9807,3947.5,3947.4,2.53331306]
[1754668308405,0.55,3948.2,3947.5,2.53324889]
[1754668308601,0.9236,3948.3,3947.8,2.53305638]
[1754668308602,0.6764,3947.9,3947.8,2.53305638]
[1754668308842,0.1264,3947.9,3947.6,2.53314531]
[1754668309030,0.1264,3947.9,3947.4,2.53331306]
[1754668309204,0.4294,3947.8,3947.4,2.53331306]
[1754668309407,4.079,3947.7,3947.3,2.6597725]
[1754668309657,4.079,3947.7,3947.4,2.53329744]
[1754668309957,4.079,3947.7,3947.6,2.53318471]
[1754668310115,4.079,3947.7,3947.5,2.53323401]
[1754668310442,4.079,3947.7,3947.4,2.53327354]
[1754668310600,4.079,3947.7,3947.6,2.53318471]
[1754668310601,4.5084,3947.7,3947.6,2.53318471]
[1754668310804,4.5084,3947.7,3947.4,2.53329986]
[1754668311237,5.0026,3947.7,3947.4,2.53329986]
[1754668311537,5.0026,3947.7,3947.5,2.53324377]
[1754668311844,5.0026,3947.7,3947.1,13.02951004]
[1754668311845,0.55,3947.6,3947.1,0.04]
[1754668312012,1.6,3947.6,3947.1,0.04]
[1754668312203,0.9236,3947.5,3947.1,0.04]
[1754668312404,4.077,3947.4,3947.1,0.04]
[1754668312608,5.0006,3947.4,3947.1,0.04]
[1754668313043,2.29461917,3947.3,3947.1,0.04]
[1754668313206,3.20984142,3947.2,3947.1,0.04]
[1754668313412,4.13344142,3947.2,3947.1,0.04]
[1754668314765,4.13344142,3947.2,3947.1,1e-08]
[1754668314766,7.13344142,3947.2,3947.1,1e-08]
[1754668315358,7.13344142,3947.2,3946.8,0.001]
[1754668315359,0.55,3946.1,3945.4,1e-08]
[1754668315514,0.82101917,3947.3,3945.5,2.5344746]
[1754668315515,0.55,3945.9,3945.5,2.5344746]
[1754668315712,4.2024,3945.8,3945.5,2.53453301]
[1754668315951,4.2024,3945.8,3945.6,2.53444568]
[1754668316134,4.2024,3945.8,3945.7,2.53440454]
[1754668316470,4.076,3945.8,3945.7,2.53440454]
[1754668318444,3.55,3946.7,3946.0,2.53420651]
[1754668318642,4.076,3946.6,3946.3,2.53396138]
[1754668318945,4.076,3946.6,3945.9,0.1264]
[1754668318946,0.9563,3946.5,3945.9,0.1264]
[1754668319141,3.61659377,3946.5,3945.9,0.1264]
[1754668319347,0.9354241,3946.5,3945.4,12.98951005]
[1754668319533,0.55,3945.9,3945.4,1e-08]
[1754668319733,0.6764,3946.2,3946.1,2.53412059]
[1754668320042,4.2014,3946.2,3946.1,2.53412059]
[1754668320250,4.2014,3946.2,3946.1,2.98422059]
[1754668320624,4.075,3946.2,3946.1,2.66052059]
[1754668321650,4.075,3946.2,3946.1,3.11062059]
[1754668321842,4.075,3946.2,3946.1,2.66052059]
[1754668323514,4.075,3946.2,3946.1,0.1264]
[1754668323850,4.075,3946.2,3946.1,2.66054763]
[1754668326036,4.075,3946.2,3946.1,0.1264]
[1754668326236,4.075,3946.2,3946.1,2.66054763]
[1754668327448,0.9563,3946.7,3946.1,0.1264]
[1754668327649,0.4567,3947.7,3946.5,2.53384101]
[1754668327849,0.1264,3947.5,3947.4,2.53331306]
[1754668328036,0.1264,3947.5,3947.1,12.98951004]
[1754668328037,4.073,3947.6,3947.5,2.53324889]
[1754668328554,4.073,3947.6,3947.4,2.53329543]
[1754668328767,4.073,3947.6,3947.3,2.65972426]
[1754668328915,4.073,3947.6,3947.3,0.1264]
[1754668329119,4.5726,3947.6,3947.3,0.1264]
[1754668329327,0.4567,3947.5,3947.3,0.1264]
[1754668329540,0.9563,3947.5,3947.3,0.1264]
[1754668329942,0.75624481,3947.5,3946.6,12.98951004]
[1754668330142,6.73260152,3947.6,3947.0,0.1264]
[1754668330355,1.0067,3947.5,3946.6,12.98951004]
[1754668330517,0.55,3946.9,3946.6,0.1264]
[1754668330734,4.071,3946.8,3946.5,2.53383878]
[1754668330947,4.071,3946.8,3946.4,0.1264]
[1754668331151,4.071,3946.8,3946.5,2.53386867]
[1754668331351,4.071,3946.8,3946.4,0.1264]
[1754668331352,4.071,3946.8,3946.6,2.53380043]
[1754668331970,4.071,3946.8,3946.7,2.53376238]
[1754668332921,0.1264,3947.3,3946.7,0.1264]
[1754668333121,4.071,3947.2,3947.1,2.53350561]
[1754668333326,6.084,3948.0,3947.1,2.53350561]
[1754668333327,0.1264,3947.8,3947.3,2.53337582]
[1754668333526,4.07,3947.7,3947.3,2.53337582]
[1754668333824,0.9563,3947.6,3947.1,0.1264]
[1754668334050,4.07,3947.7,3947.2,2.5334381]
[1754668334051,0.9563,3947.5,3947.2,2.5334381]
[1754668334253,2.53300536,3947.9,3947.2,0.4501]
[1754668334254,4.07,3947.6,3947.2,0.4501]
[1754668334583,4.07,3947.6,3947.4,2.53325584]
[1754668334785,4.07,3947.6,3947.3,0.1264]
[1754668334786,0.5396,3948.4,3947.3,0.1264]
[1754668334988,4.072,3948.3,3947.8,12.98951004]
[1754668335160,4.072,3948.3,3948.0,0.1264]
[1754668336265,4.072,3948.3,3948.2,2.53279975]
[1754668336266,0.002,3948.3,3948.2,2.53279975]
[1754668336649,0.002,3948.3,3948.2,3.59609975]
[1754668338283,0.002,3948.3,3948.2,3.10929975]
[1754668338705,0.002,3948.3,3948.2,2.65919975]
[1754668339607,0.002,3948.7,3948.2,2.65919975]
[1754668339608,0.002,3948.7,3948.6,5.53254317]
[1754668339789,0.002,3948.7,3948.6,22.58905321]
[1754668339984,0.002,3949.2,3949.0,2.53228665]
[1754668341384,0.002,3949.2,3949.0,2.98238665]
[1754668341599,0.002,3949.2,3949.0,3.46918665]
[1754668341805,0.002,3949.2,3949.0,4.47604217]
[1754668342719,0.002,3949.2,3949.0,3.98924217]
[1754668343069,0.002,3949.2,3949.0,3.53914217]
[1754668343270,0.002,3949.2,3949.0,2.53228665]
[1754668344224,0.9259,3949.1,3947.5,2.53324889]
[1754668344373,3.45816574,3949.1,3948.3,2.5326953]
[1754668344713,2.97628952,3949.0,3948.1,15.52237088]
[1754668344916,2.97628952,3949.0,3948.3,2.53268831]
[1754668345117,1.50473501,3949.0,3948.4,2.53265969]
[1754668345377,0.9239,3948.9,3947.9,2.53297522]
[1754668345526,0.9239,3948.9,3948.2,2.53279975]
[1754668345825,3.59307327,3949.0,3946.9,4.064]
[1754668345826,0.55,3948.5,3946.9,4.064]
[1754668346028,0.55,3948.3,3947.8,2.53300912]
[1754668346332,0.9239,3948.2,3947.6,2.53317779]
[1754668346697,0.9239,3948.2,3947.8,2.53300824]
[1754668347097,0.55,3948.3,3947.5,12.98951004]
[1754668347428,0.9239,3948.1,3947.8,2.53301136]
[1754668347629,4.064,3948.3,3948.0,2.53289303]
[1754668348002,4.064,3948.3,3947.8,2.53304095]
[1754668348202,0.9239,3948.2,3947.9,2.53298347]
[1754668348399,0.9239,3948.7,3947.7,12.98951004]
[1754668348623,4.063,3948.7,3948.3,15.5222342]
[1754668349415,0.002,3948.9,3948.5,0.1264]
[1754668349613,0.002,3948.9,3948.8,15.64832495]
[1754668351636,0.002,3948.9,3948.8,18.64832495]
[1754668351936,0.002,3949.1,3949.0,2.53228665]
[1754668352136,0.002,3949.1,3949.0,2.65868665]
[1754668354619,0.002,3949.1,3949.0,0.1264]
[1754668355040,0.002,3949.1,3949.0,2.65868665]
[1754668356512,0.446,3949.1,3949.0,0.1264]
[1754668356712,0.552,3949.1,3949.0,0.1264]
[1754668356910,0.552,3949.1,3949.0,2.53228665]
[1754668357455,0.002,3949.1,3949.0,2.53228665]
[1754668357640,0.002,3949.1,3949.0,2.65868665]
[1754668359344,0.002,3949.1,3949.0,7.476747]
[1754668359557,0.002,3949.1,3949.0,8.428247]
[1754668359843,0.002,3949.2,3949.1,5.53222253]
[1754668360030,0.002,3949.2,3949.1,9.59122253]
[1754668360237,0.002,3949.2,3949.1,10.05842253]
[1754668360407,0.002,3949.2,3949.1,12.72388514]
[1754668360612,0.002,3949.9,3949.8,2.53177376]
[1754668360852,0.002,3949.9,3949.8,15.5212838]
[1754668361151,0.9259,3949.9,3949.8,15.6476838]
[1754668361849,0.446,3949.9,3949.8,15.6476838]
[1754668362145,0.002,3949.9,3949.8,15.6476838]
[1754668363747,0.04,3950.4,3950.0,2.53164556]
[1754668364171,0.04,3950.4,3950.3,2.5314533]
[1754668364322,0.04,3950.4,3950.3,15.64736334]
[1754668365951,0.04,3950.4,3950.3,13.11591004]
[1754668366151,0.04,3950.4,3950.3,15.64736334]
[1754668367887,0.9639,3950.4,3950.3,0.1264]
[1754668368185,0.9639,3950.4,3950.1,15.52108121]
[1754668368186,3.49528922,3950.4,3950.1,0.1264]
[1754668368476,3.49528922,3950.4,3949.2,2.53215841]
[1754668368477,0.55,3950.1,3949.2,2.53215841]
[1754668368629,3.45554556,3950.0,3949.3,2.53208261]
[1754668368826,0.444,3949.9,3949.1,15.52172067]
[1754668369036,0.444,3949.9,3949.2,2.53215821]
[1754668369261,0.444,3949.9,3949.4,0.1264]
[1754668369571,0.9239,3949.8,3949.4,0.1264]
[1754668369865,1.4739,3949.7,3949.2,0.1264]
[1754668370226,0.9239,3949.6,3949.2,0.1264]
[1754668370643,0.9239,3949.5,3949.2,0.1264]
[1754668370943,0.9239,3949.4,3949.2,0.1264]
[1754668371143,0.9239,3949.3,3949.1,13.11591004]
[1754668371346,0.9239,3949.2,3948.6,12.98951004]
[1754668371540,0.9239,3949.2,3948.7,2.6588571]
[1754668371756,0.9239,3949.1,3948.8,2.5324087]
[1754668371955,0.9239,3949.1,3948.7,2.6588669]
[1754668372158,0.9239,3949.0,3948.7,0.1264]
[1754668372358,4.054,3949.1,3948.7,0.1264]
[1754668372576,0.9239,3948.9,3948.7,2.65886982]
[1754668372781,0.9239,3948.9,3948.7,0.1264]
[1754668373485,0.9239,3948.8,3948.6,12.98951004]
[1754668373648,4.1804,3949.1,3948.7,2.53247904]
[1754668373649,0.1264,3949.1,3948.7,2.53247904]
[1754668373850,0.1264,3949.1,3948.6,12.98951004]
[1754668374049,3.08197401,3949.5,3948.6,12.98951004]
[1754668374050,0.6764,3949.5,3948.9,0.1264]
[1754668374298,1.1149,3949.5,3948.9,0.1264]
[1754668374599,1.1149,3949.5,3949.1,12.98951004]
[1754668374953,0.5649,3949.5,3949.1,12.98951004]
[1754668375153,4.053,3949.6,3949.3,2.53204022]
[1754668375564,0.55,3949.2,3948.5,2.53360667]
[1754668375782,0.55,3949.2,3949.1,2.53222089]
[1754668376005,0.55,3949.2,3948.8,4.053]
[1754668376006,0.1264,3949.2,3948.8,4.053]
[1754668378288,0.55,3949.3,3948.8,4.1794]
[1754668378762,1.0262,3949.3,3948.8,4.1794]
[1754668378949,1.0262,3949.3,3948.5,12.99051004]
[1754668378950,0.55,3949.1,3948.5,12.99051004]
[1754668379157,1.37473843,3949.3,3948.5,0.001]
[1754668379158,2.65893075,3948.7,3948.5,0.001]
[1754668379385,0.1264,3948.7,3948.5,0.001]
[1754668379590,0.4385,3948.6,3948.5,0.001]
[1754668380678,0.1264,3948.7,3948.5,0.001]
[1754668381050,0.4385,3948.6,3948.5,0.001]
[1754668381251,0.9147,3948.6,3948.5,0.001]
[1754668381954,0.1264,3948.7,3948.5,0.001]
[1754668382355,0.1264,3948.7,3948.5,4.052]
[1754668382590,0.6764,3949.1,3948.6,2.53249796]
[1754668382751,0.6764,3949.1,3948.8,12.98951004]
[1754668382959,4.051,3949.4,3948.8,15.52186726]
[1754668383258,4.1774,3949.4,3948.9,0.1264]
[1754668383657,4.051,3949.4,3948.9,0.1264]
[1754668384096,0.9147,3949.3,3948.9,0.1264]
[1754668384296,0.9147,3949.3,3948.9,2.65871692]
[1754668384697,0.4762,3949.3,3948.9,2.65871692]
[1754668384990,0.6764,3949.1,3948.8,12.98951004]
[1754668385196,3.08235794,3948.9,3948.6,0.1264]
[1754668385492,0.6764,3948.7,3948.5,2.53359451]
[1754668385801,3.99724317,3948.6,3948.5,0.001]
[1754668386000,4.15635317,3948.6,3948.5,0.001]
[1754668386294,1.62381,3948.6,3948.5,0.001]
[1754668386493,3.99724317,3948.6,3948.5,0.001]
[1754668386681,1.4647,3948.6,3948.5,0.001]
[1754668386887,0.55,3948.6,3948.5,12.99051004]
[1754668387290,6.5823705,3948.9,3948.5,12.99051004]
[1754668387490,4.05,3948.9,3948.5,12.99051004]
[1754668387990,4.4885,3948.9,3948.5,12.99051004]
[1754668388200,4.9647,3948.9,3948.5,12.99051004]
[1754668388568,7.49706094,3948.9,3948.5,12.99051004]
[1754668388898,2.53242266,3948.8,3948.5,12.99051004]
[1754668389088,2.97092266,3948.8,3948.5,12.99051004]
[1754668389602,0.4385,3948.8,3948.5,12.99051004]
[1754668390078,4.5262,3948.9,3948.5,12.99051004]
[1754668390603,4.05,3948.9,3948.5,12.99051004]
[1754668391498,4.05,3948.9,3948.5,15.52310371]
[1754668391663,4.048,3949.2,3948.6,4.48964962]
[1754668392105,3.0,3949.9,3948.6,4.48964962]
[1754668392106,2.53187132,3949.7,3949.0,12.98951004]
[1754668392279,4.048,3949.6,3949.0,17.27951003]
[1754668392476,0.55,3949.5,3949.1,2.53221443]
[1754668392680,0.4385,3950.1,3949.2,4.28999999]
[1754668393011,0.55,3950.0,3949.5,12.98951004]
[1754668393301,0.4385,3949.9,3949.5,12.98951004]
[1754668393471,4.048,3950.1,3949.5,12.98951004]
[1754668394868,2.53168752,3950.0,3949.5,12.98951004]
[1754668395069,4.048,3950.1,3949.5,12.98951004]
[1754668395070,2.53171837,3949.9,3949.5,12.98951004]
[1754668395276,2.53177602,3949.8,3949.5,12.98951004]
[1754668395518,0.55,3950.3,3949.7,12.98951004]
[1754668395816,0.6764,3950.3,3949.7,13.11591004]
[1754668396110,0.042,3950.4,3949.8,4.047]
[1754668396318,0.042,3950.4,3950.0,0.1264]
[1754668396608,0.042,3950.4,3950.0,2.65798524]
[1754668397219,0.042,3950.4,3950.1,6.57757308]
[1754668397420,0.042,3950.4,3950.2,12.98951004]
[1754668397575,0.042,3950.4,3950.2,15.5210167]
[1754668397771,0.042,3950.4,3950.2,12.98951004]
[1754668397975,0.9147,3950.3,3950.0,4.1724]
[1754668398786,0.042,3950.4,3950.0,4.1724]
[1754668399120,0.042,3950.4,3950.2,12.98951004]
[1754668399326,0.042,3950.4,3950.0,0.1264]
[1754668399688,0.042,3950.4,3950.2,12.98951004]
[1754668399982,0.042,3950.4,3950.2,15.52096787]
[1754668400187,0.042,3950.4,3950.3,2.5314533]
[1754668400404,0.042,3950.4,3950.2,13.11591004]
[1754668400617,0.042,3950.4,3950.3,2.5314533]
[1754668400916,0.042,3950.4,3950.3,2.9861533]
[1754668401304,0.042,3950.4,3950.3,2.5314533]
[1754668401699,0.042,3950.4,3950.3,6.5754533]
[1754668401914,0.042,3950.4,3950.3,7.0301533]
[1754668402621,0.042,3950.4,3950.3,6.5754533]
[1754668402825,0.042,3950.4,3950.3,8.88893525]
[1754668403008,0.042,3950.4,3950.3,9.34363525]
[1754668403318,0.042,3950.4,3950.3,6.5754533]
[1754668404485,0.042,3950.4,3950.3,7.0277533]
[1754668404993,0.042,3950.4,3950.3,7.5051533]
[1754668405307,0.042,3950.4,3950.3,6.5754533]
[1754668405534,0.042,3950.4,3950.3,2.5314533]
[1754668405736,0.042,3950.4,3950.3,6.5734533]
[1754668405916,0.042,3950.4,3950.3,2.5314533]
[1754668406244,0.042,3950.4,3950.3,6.5734533]
[1754668408109,0.042,3950.4,3950.3,6.5724533]
[1754668409608,0.042,3950.4,3950.3,8.79444672]
[1754668409805,0.55,3950.3,3949.4,12.98951004]
[1754668410044,0.434,3950.2,3949.5,6.57196607]
[1754668410210,0.434,3950.2,3949.7,2.53181837]
[1754668410539,3.08147456,3950.3,3949.8,4.04]
[1754668410844,0.984,3950.3,3949.9,17.02951004]
[1754668411043,0.8915,3950.2,3949.9,17.02951004]
[1754668411345,0.8915,3950.1,3949.9,17.02951004]
[1754668411513,0.8915,3950.1,3949.9,12.98951004]
[1754668411835,0.8915,3950.1,3950.0,0.001]
[1754668412037,0.4575,3950.1,3950.0,0.001]
[1754668412507,0.8915,3950.1,3950.0,0.001]
[1754668412708,0.55,3950.3,3950.0,0.001]
[1754668412932,0.55,3950.3,3950.0,2.5326447]
[1754668413148,1.4415,3950.3,3950.0,0.001]
[1754668413652,0.042,3950.4,3950.0,2.53263942]
[1754668413853,0.042,3950.4,3949.9,17.02951004]
[1754668414050,0.042,3950.4,3950.3,2.5314533]
[1754668414957,0.002,3951.1,3951.0,2.5310048]
[1754668415160,0.002,3951.1,3951.0,19.55951484]
[1754668415346,0.002,3951.1,3951.0,20.48921484]
[1754668415555,0.002,3951.1,3951.0,19.55951484]
[1754668416038,0.002,3951.1,3951.0,4.038]
[1754668416238,0.002,3951.1,3950.9,2.53104991]
[1754668416451,0.002,3951.1,3951.0,4.038]
[1754668416664,0.002,3951.1,3951.0,6.5690048]
[1754668417161,0.002,3951.1,3951.0,4.038]
[1754668417359,0.002,3951.1,3950.5,12.98951004]
[1754668417360,0.002,3951.1,3950.8,2.53111548]
[1754668417559,0.434,3951.0,3950.7,2.53114669]
[1754668418069,0.002,3951.1,3950.9,2.53105628]
[1754668418269,0.002,3951.1,3951.0,6.5690048]
[1754668418474,0.002,3951.1,3951.0,6.5680048]
[1754668419049,0.002,3951.1,3951.0,9.32213476]
[1754668419464,0.002,3951.1,3951.0,12.79953476]
[1754668419844,0.002,3951.1,3951.0,12.92593476]
[1754668420246,0.002,3951.1,3951.0,12.44853476]
[1754668420857,0.002,3951.1,3951.0,12.92593476]
[1754668422582,0.8130497,3951.3,3951.2,2.53087669]
[1754668422778,0.8130497,3951.3,3951.2,7.35406628]
[1754668422983,0.8130497,3951.3,3951.2,8.28376628]
[1754668423784,0.002,3951.9,3951.2,8.28376628]
[1754668423785,0.002,3951.9,3951.8,2.53049243]
[1754668423988,0.002,3951.9,3951.8,6.69189243]
[1754668424491,0.04,3952.4,3951.8,6.69189243]
[1754668424492,0.04,3952.4,3951.9,2.5304284]
[1754668424695,0.04,3952.4,3952.3,15.51968234]
[1754668424899,0.04,3952.4,3952.3,0.1264]
[1754668425061,0.434,3952.3,3951.7,12.98951004]
[1754668425399,0.04,3952.4,3952.2,12.98951004]
[1754668425610,0.04,3952.4,3952.3,6.5641723]
[1754668427893,0.04,3953.4,3952.3,6.5641723]
[1754668427894,0.04,3953.4,3953.2,2.52958154]
[1754668428208,0.04,3953.4,3952.3,21.36515705]
[1754668428209,0.04,3953.4,3953.3,6.56353228]
[1754668428993,0.04,3953.4,3953.3,4.034]
[1754668429506,0.04,3953.4,3953.3,19.55204232]
[1754668429990,0.04,3953.4,3953.3,20.48174232]
[1754668430189,0.04,3953.4,3953.3,25.27256823]
[1754668430488,0.89477447,3954.0,3953.9,2.52914843]
[1754668430685,0.89477447,3954.0,3953.9,22.55165847]
[1754668430901,0.89477447,3954.0,3953.3,4.32035819]
[1754668430902,0.04,3954.4,3954.0,12.98951004]
[1754668431075,0.04,3954.4,3954.3,2.52889259]